Cogmind - Beta 15 @@@ ROGUE MODE // 2025.09.27 @ 17:57:36 // Winter2022/Polymind Player: Figgis Result: Destroyed by B-75 Beast with Magnetic Acceleration Cannon Performance ------------- Evolutions (4) 2000 Regions Visited (8) 1600 Robots Destroyed (33) 165 Value Destroyed (918) 918 Prototype IDs (11) 220 Alien Tech Used (0) 0 Bonus (3736) 3736 TOTAL SCORE: 8199 Bonus ------- Polymind Skill 3370 Follower Combat Kills 366 Cogmind --------- Core Integrity 0/850 Matter 100/100 Energy 46/50 System Corruption 0% Temperature Cool (2) Movement Treading (160) Location -6/Extension Parts ------- > --- POWER (1) -------- (None) > --- PROPULSION (2) --- Light Treads Light Treads > --- UTILITY (3) ------ Improved Light Armor Plating > --- WEAPON (2) ------- (None) > --- INVENTORY (1) ---- (None) Peak State ------------ > --- POWER ------------ Heavy Deuterium Engine > --- PROPULSION ------- Combat Antigrav System > --- UTILITY ---------- Advanced Launcher Guidance Computer Improved Target Analyzer Experimental Core Analyzer Improved Armor Integrity Analyzer EX Chip 1 EX Chip 1 EX Chip 1 EX Chip 1 EX Chip 1 EX Chip 1 EX Chip 1 EX Chip 1 EX Chip 1 EX Chip 1 EX Chip 2 EX Chip 2 EX Chip 2 EX Chip 2 EX Chip 2 EX Chip 2 EX Chip 2 EX Chip 2 > --- WEAPON ----------- AWS/EX-DEC > --- INVENTORY -------- Deploy-a-Sentry [Rating: 99] Favorites ----------- Power Light Nuclear Core Engine Heavy Deuterium Engine Power Core Light Nuclear Core Propulsion Aluminum Leg Treads Light Treads Leg Aluminum Leg Hover Unit Combat Antigrav System Utility EX Chip 1 Device Improved Heat Sink Processor Advanced Launcher Guidance Computer Hackware EX Chip 1 Protection Improved Light Armor Plating Weapon Particle Gun Energy Gun Particle Gun Ballistic Gun Flak Gun Build | -11 -10 -10 -10 -9 -8 -7 -6 -6 ------- Run | Yrd Mat Min Exi Min Mat Fac Fac Ext Slots Evolved . | . . . . . . . . . Power . | . . . . . . . . . Propulsion . | . . . . . . . . . Utility . | . . . . . . . . . Weapon . | . . . . . . . . . Parts Attached . | . . . . . . . . . Power . | . . . . . . . . . Engine . | . . . . . . . . . Core . | . . . . . . . . . Reactor . | . . . . . . . . . Propulsion . | . . . . . . . . . Treads . | . . . . . . . . . Leg . | . . . . . . . . . Wheel . | . . . . . . . . . Hover . | . . . . . . . . . Flight . | . . . . . . . . . Utility . | . . . . . . . . . Device . | . . . . . . . . . Storage . | . . . . . . . . . Processor . | . . . . . . . . . Hackware . | . . . . . . . . . Protection . | . . . . . . . . . Artifact . | . . . . . . . . . Weapon . | . . . . . . . . . Energy Gun . | . . . . . . . . . Energy Cannon . | . . . . . . . . . Ballistic Gun . | . . . . . . . . . Ballistic Cannon . | . . . . . . . . . Launcher . | . . . . . . . . . Special Weapon . | . . . . . . . . . Impact Weapon . | . . . . . . . . . Slashing Weapon . | . . . . . . . . . Piercing Weapon . | . . . . . . . . . Special Melee Weapon . | . . . . . . . . . Unidentified Prototypes . | . . . . . . . . . Parts Lost 13 | . . . . . 1 . 4 8 Power 2 | . . . . . 1 . . 1 Propulsion . | . . . . . . . . . Utility 8 | . . . . . . . 3 5 Weapon 3 | . . . . . . . 1 2 Highest Loss Streak 8 | . . . . . 1 . 1 8 To Critical Strikes . | . . . . . . . . . Average Backups . | . . . . . . . . . Power . | . . . . . . . . . Propulsion . | . . . . . . . . . Utility . | . . . . . . . . . Weapon . | . . . . . . . . . Tool/Special . | . . . . . . . . . Unused Backups . | . . . . . . . . . Power . | . . . . . . . . . Propulsion . | . . . . . . . . . Utility . | . . . . . . . . . Weapon . | . . . . . . . . . Tool/Special . | . . . . . . . . . Average Slot Usage (%) 86 | . . 93 66 96 95 92 87 72 Core 8 | . . 18 . . . . . . Leg 17 | . . 37 . . . . . . Hover 1 | . . . 2 3 3 3 3 2 Device 8 | . . 18 . . . . . . Processor 7 | . . . 10 15 15 15 15 13 Hackware 30 | . . . 47 69 69 69 65 50 Energy Gun 9 | . . 18 2 3 3 3 2 . Peak Build Rating 99 | . . 10 99 99 99 94 94 68 Average Rating 45 | . . 9 68 99 98 94 87 60 On Entrance 50 | . . . . 99 99 94 94 68 Naked Turns 183 | . 69 56 47 . . . . 11 Heaviest Build 23 | . . 9 21 21 21 10 10 23 Greatest Support 40 | 3 3 20 21 21 21 21 21 40 Greatest Overweight (x) . | . . . . . . . . . Average Overweight (x) . | . . . . . . . . . Largest Inventory Capacity 2 | . . 1 2 2 2 2 2 2 Average Capacity 1 | . . . 1 2 2 2 2 1 Most Carried 1 | . . . 1 1 1 1 1 . Average Carried . | . . . . 1 1 1 . . Final Capacity 2 | . . . 2 2 2 2 2 1 Final Carried 1 | . . . 1 1 1 1 . . Class Distribution -------------------- 46% | Assembler 45% | Grunt 7% | Cogmind Dominant Class ---------------- Cogmind | -10/Materials Grunt | -10/Mines Assembler | -10/Exiles Assembler | -9/Mines Assembler | -8/Materials Assembler | -7/Factory Assembler | -6/Factory Assembler | -6/Extension Resources | -11 -10 -10 -10 -9 -8 -7 -6 -6 ----------- Run | Yrd Mat Min Exi Min Mat Fac Fac Ext Matter Collected 4 | . . . . . . . . 4 Remotely . | . . . . . . . . . Salvage Created 1061 | . . 90 . . 824 . 147 . Parts 71 | . . 9 . 2 47 . 13 . Haulers Intercepted . | . . . . . . . . . Recyclers Shooed . | . . . . . . . . . Parts Field Recycled . | . . . . . . . . . Retrieved Matter . | . . . . . . . . . Parts Self-Destructed . | . . . . . . . . . Prevented . | . . . . . . . . . Kills | -11 -10 -10 -10 -9 -8 -7 -6 -6 ------- Run | Yrd Mat Min Exi Min Mat Fac Fac Ext Combat Hostiles Destroyed 31 | . . 5 . 2 17 . 7 . Guns 31 | . . 5 . 2 17 . 7 . Classes Destroyed 9 | . . 2 . 1 6 . . . Worker 1 | . . . . . 1 . . . Operator 1 | . . . . . 1 . . . Watcher 2 | . . . . . 2 . . . Swarmer 16 | . . . . 2 7 . 7 . Grunt 7 | . . 3 . . 4 . . . Duelist 1 | . . . . . 1 . . . Sentry 4 | . . . . . 4 . . . Hunter 1 | . . . . . 1 . . . Assembled 2 | . . 2 . . . . . . Best Kill Streak 6 | . . 1 . 2 6 . 4 . Combat Bots Only 6 | . . 1 . 2 6 . 4 . Max Kills in Single Turn 2 | . . 1 . 1 2 . 1 . Gunslinging . | . . . . . . . . . Exploded . | . . . . . . . . . Melee . | . . . . . . . . . Uniques/NPCs Destroyed . | . . . . . . . . . Combat | -11 -10 -10 -10 -9 -8 -7 -6 -6 -------- Run | Yrd Mat Min Exi Min Mat Fac Fac Ext Hostile Shots Fired 230 | . . 19 . 2 38 . 99 72 Missed 94 | . . 7 . . 22 . 49 16 Hits 136 | . . 12 . 2 16 . 50 56 Projectile 136 | . . 12 . 2 16 . 50 56 Critical Strikes 4 | . . 1 . . . . . 3 Part Disruptions 2 | . . 1 . . . . 1 . Damage Taken 2255 | . . 135 . 13 315 . 572 1220 Core 1048 | . . 52 . . 133 . 396 467 Absorbed by Shields . | . . . . . . . . . Ignored by Resistances 111 | . . . . . 27 . 84 . Core Remaining (%) 88 | 100 . . . 79 75 100 . . Volleys Fired 18 | . . 18 . . . . . . Largest 1 | . . 1 . . . . . . Hottest 65 | . . 65 . . . . . . Shots Fired 84 | . . 18 . 4 50 1 11 . Gun 84 | . . 18 . 4 50 1 11 . Cannon . | . . . . . . . . . Launcher . | . . . . . . . . . Special . | . . . . . . . . . Kinetic . | . . . . . . . . . Thermal 18 | . . 18 . . . . . . Explosive . | . . . . . . . . . Electromagnetic 66 | . . . . 4 50 1 11 . Robot Hit Streak 7 | . . 2 . 3 7 1 5 . Robot Miss Streak 5 | . . 4 . 3 5 1 1 . Penetration Max . | . . . . . . . . . Secondary Targets . | . . . . . . . . . Autonomous 66 | . . . . 4 50 1 11 . Shots Hit Robots 66 | . . 8 . 3 43 1 11 . Core Hits 54 | . . 7 . 2 31 . 14 . Critical Kills . | . . . . . . . . . Critical Parts Destroyed . | . . . . . . . . . Critical Strikes 4 | . . 1 . . 2 . 1 . Burn 1 | . . 1 . . . . . . Corrupt 3 | . . . . . 2 . 1 . Melee Attacks . | . . . . . . . . . Impact . | . . . . . . . . . Slashing . | . . . . . . . . . Piercing . | . . . . . . . . . Sneak Attacks . | . . . . . . . . . Combat Hostiles . | . . . . . . . . . Follow-up Attacks . | . . . . . . . . . Damage Inflicted 1638 | . . 139 . 69 1150 13 267 . Guns 1632 | . . 133 . 69 1150 13 267 . Cannons . | . . . . . . . . . Explosions . | . . . . . . . . . Melee . | . . . . . . . . . Ramming 6 | . . 6 . . . . . . Kinetic . | . . . . . . . . . Thermal 133 | . . 133 . . . . . . Explosive . | . . . . . . . . . Electromagnetic 1499 | . . . . 69 1150 13 267 . Impact . | . . . . . . . . . Slashing . | . . . . . . . . . Piercing . | . . . . . . . . . Highest Corruption . | . . . . . . . . . Average Corruption . | . . . . . . . . . Corruption Purged . | . . . . . . . . . Corruption Blocked . | . . . . . . . . . Overload Shots . | . . . . . . . . . Overflow Damage . | . . . . . . . . . Projectiles . | . . . . . . . . . Explosions . | . . . . . . . . . Melee . | . . . . . . . . . Knockbacks . | . . . . . . . . . Impact . | . . . . . . . . . Kinetic . | . . . . . . . . . Secondary . | . . . . . . . . . Self-Inflicted Damage . | . . . . . . . . . Shots . | . . . . . . . . . Rammed 1 | . . . . . . . . 1 Targets Rammed 4 | . . 3 . . . . . 1 Kicked 3 | . . 3 . . . . . . Crushed . | . . . . . . . . . Highest Temperature 93 | . . 93 . . 1 . . 21 Average Temperature 19 | . . 26 . . 1 . . 13 Received Heat Transfer 495 | . . 171 . . 78 . 66 180 Siege Activations . | . . . . . . . . . Martial Activations . | . . . . . . . . . Shielding Activations . | . . . . . . . . . Robots Disrupted . | . . . . . . . . . Combat Hostiles . | . . . . . . . . . Robots Corrupted . | . . . . . . . . . Combat Hostiles . | . . . . . . . . . Parts Fried 9 | . . . . . 9 . . . Impact Corruptions . | . . . . . . . . . Robots Melted . | . . . . . . . . . Combat Hostiles . | . . . . . . . . . Parts Melted . | . . . . . . . . . Heat Transferred 370 | . . 370 . . . . . . Parts Sabotaged . | . . . . . . . . . Parts Stolen . | . . . . . . . . . Parts Stripped . | . . . . . . . . . Power Chain Reactions . | . . . . . . . . . Alert | -11 -10 -10 -10 -9 -8 -7 -6 -6 ------- Run | Yrd Mat Min Exi Min Mat Fac Fac Ext Maximum Alert Level 1 | . . . . . 1 . . . Low Security (%) 97 | 100 100 100 . 100 76 100 100 100 Level 1 2 | . . . . . 23 . . . Level 2 . | . . . . . . . . . Level 3 . | . . . . . . . . . Level 4 . | . . . . . . . . . Level 5 . | . . . . . . . . . High Security . | . . . . . . . . . Max Security . | . . . . . . . . . Peak Influence 378 | . 11 23 . 71 378 6 147 103 Initial 42 | . . . . . 23 6 . 42 Average 30 | . 1 1 . 22 161 . 73 23 Influence Increases 1268 | . 20 63 . 81 671 . 297 136 Destroy 0b10 Robot/C 880 | . . 60 . 60 440 . 220 100 Destroy 0b10 Robot/NC 20 | . . . . . 20 . . . Destroy Leader 174 | . . . . 10 104 . 50 10 Allied During Kill 113 | . . 3 . 11 62 . 11 26 Successful Hack 20 | . 20 . . . . . . . Destroy Structure 1 | . . . . . . . 1 . Lose Combat Pursuer 60 | . . . . . 45 . 15 . Influence Decreases 1268 | . 20 63 . 20 717 15 210 223 Entered New Map 92 | . . . . . 38 9 . 45 Time Decay 441 | . 20 63 . 20 110 6 150 72 Lost Part 96 | . . . . . 10 . 40 46 Lost Ally 140 | . . . . . 60 . 20 60 Purge Threat 499 | . . . . . 499 . . . Squads Dispatched 4 | . . . . . 2 . 2 . Investigation 2 | . . . . . 1 . 1 . Extermination 1 | . . . . . . . 1 . Reinforcement 1 | . . . . . 1 . . . Assault . | . . . . . . . . . Garrison . | . . . . . . . . . Intercept . | . . . . . . . . . Searches Triggered . | . . . . . . . . . Construction Impeded . | . . . . . . . . . Haulers Reinforced . | . . . . . . . . . Active Scanning Responses . | . . . . . . . . . Cargo Convoy Interrupts . | . . . . . . . . . Stealth | -11 -10 -10 -10 -9 -8 -7 -6 -6 --------- Run | Yrd Mat Min Exi Min Mat Fac Fac Ext Distress Signals 1 | . . . . . 1 . . . Communications Jammed . | . . . . . . . . . Distress Signals . | . . . . . . . . . Times Spotted 67 | . . 7 . 3 25 3 17 12 Peak Tracking Total 10 | . . 2 . 2 10 4 5 5 Tactical Retreats 4 | . . 1 . . 2 . 1 . Traps | -11 -10 -10 -10 -9 -8 -7 -6 -6 ------- Run | Yrd Mat Min Exi Min Mat Fac Fac Ext Traps Triggered 3 | . . . . . 1 . 1 1 Indirectly . | . . . . . . . . . Trap Hack Attempts . | . . . . . . . . . Triggered . | . . . . . . . . . Disarmed . | . . . . . . . . . Reprogrammed 12 | . . . . . 6 6 . . Reused . | . . . . . . . . . Traps Extracted . | . . . . . . . . . Installed . | . . . . . . . . . Triggered . | . . . . . . . . . Machines | -11 -10 -10 -10 -9 -8 -7 -6 -6 ---------- Run | Yrd Mat Min Exi Min Mat Fac Fac Ext Machines Disabled . | . . . . . . . . . Max in Single Turn . | . . . . . . . . . Garrison Access 1 | . . . . . . . 1 . Machines Repaired . | . . . . . . . . . Machines Dismantled . | . . . . . . . . . Machines Sabotaged . | . . . . . . . . . Overloaded Fab Kills . | . . . . . . . . . Hacking | -11 -10 -10 -10 -9 -8 -7 -6 -6 --------- Run | Yrd Mat Min Exi Min Mat Fac Fac Ext Machines Accessed 17 | . 2 . 1 . 4 4 4 2 Terminals 14 | . 2 . . . 4 4 2 2 Fabricators . | . . . . . . . . . Repair Stations 1 | . . . . . . . 1 . Recycling Units . | . . . . . . . . . Scanalyzers . | . . . . . . . . . Garrison Access 1 | . . . . . . . 1 . Total Hacks 114 | . 6 . 23 . 46 30 7 2 Successful 109 | . 6 . 23 . 44 29 5 2 Failed 5 | . . . . . 2 1 2 . Catastrophic . | . . . . . . . . . Database Lockouts . | . . . . . . . . . Manual 52 | . 2 . . . 30 15 5 . Terminals 89 | . 6 . . . 46 30 5 2 Fabricators . | . . . . . . . . . Repair Stations 1 | . . . . . . . 1 . Recycling Units . | . . . . . . . . . Scanalyzers . | . . . . . . . . . Garrison Access 1 | . . . . . . . 1 . Terminal Hacks 95 | . 4 . 23 . 38 25 3 2 Record 30 | . . . 23 . 6 1 . . Part Schematic 1 | . . . . . . 1 . . Robot Analysis 8 | . . . . . 8 . . . Prototype ID Bank 4 | . 1 . . . 1 2 . . Open Door 3 | . . . . . . . 1 2 Level Access Points 2 | . . . . . 1 1 . . Branch Access Points 3 | . . . . . 1 1 1 . Machine Index 3 | . . . . . 1 1 1 . Garrison Index 1 | . . . . . . 1 . . Unreport Threat 7 | . . . . . 6 1 . . Locate Traps 3 | . . . . . 1 2 . . Reprogram Traps 2 | . . . . . 1 1 . . Dispatch Records 3 | . 1 . . . 1 1 . . Surveillance Status 2 | . . . . . 2 . . . Patrol Status 3 | . 1 . . . 2 . . . Investigation Status 2 | . . . . . 1 1 . . Recall Investigation 2 | . . . . . . 2 . . Recall Extermination 1 | . . . . . . 1 . . Recall Reinforcements 2 | . . . . . 1 1 . . Hauler Manifests 3 | . . . . . 1 2 . . Registered Components 3 | . . . . . 1 2 . . Registered Prototypes 2 | . . . . . 1 1 . . Zone Layout 3 | . 1 . . . . 2 . . Garrison Registry 1 | . . . . . 1 . . . Patrol Navigation 1 | . . . . . 1 . . . Fabricator Hacks . | . . . . . . . . . Repair Station Hacks . | . . . . . . . . . Recycling Unit Hacks . | . . . . . . . . . Scanalyzer . | . . . . . . . . . Garrison Access Hacks 1 | . . . . . . . 1 . Seal Access 1 | . . . . . . . 1 . Unauthorized Hacks 13 | . 2 . . . 6 4 1 . Terminals 12 | . 2 . . . 6 4 . . Track 1 | . . . . . 1 . . . Assimilate 1 | . . . . . 1 . . . Botnet 4 | . 1 . . . 2 1 . . Disrupt 1 | . . . . . . 1 . . Operators 3 | . 1 . . . 1 1 . . Skim 2 | . . . . . 1 1 . . Fabricators . | . . . . . . . . . Repair Stations 1 | . . . . . . . 1 . Patch 1 | . . . . . . . 1 . Recycling Units . | . . . . . . . . . Scanalyzers . | . . . . . . . . . Garrison Access . | . . . . . . . . . Data Cores Recovered 1 | . . . . . 1 . . . Used 1 | . . . . . 1 . . . Hacking Detections 9 | . 2 . . . 3 2 1 1 Full Trace Events 1 | . . . . . 1 . . . Feedback Events . | . . . . . . . . . Feedback Blocked . | . . . . . . . . . Robot Schematics Acquired . | . . . . . . . . . Robots Built . | . . . . . . . . . Authchips . | . . . . . . . . . Time . | . . . . . . . . . Total Robot Build Rating . | . . . . . . . . . Part Schematics Acquired 1 | . . . . . . 1 . . Parts Built . | . . . . . . . . . Authchips . | . . . . . . . . . Time . | . . . . . . . . . Total Part Build Rating . | . . . . . . . . . Parts Repaired . | . . . . . . . . . Time . | . . . . . . . . . Parts Recycled . | . . . . . . . . . Recycled Matter . | . . . . . . . . . Retrieved Matter . | . . . . . . . . . Retrieved Components . | . . . . . . . . . Parts Scanalyzed . | . . . . . . . . . Part Schematics Acquired . | . . . . . . . . . Parts Damaged . | . . . . . . . . . Bothacking | -11 -10 -10 -10 -9 -8 -7 -6 -6 ------------ Run | Yrd Mat Min Exi Min Mat Fac Fac Ext Used RIF Installer . | . . . . . . . . . Robots Hacked 2 | . . 1 . . . . . 1 Non-combat . | . . . . . . . . . Combat 2 | . . 1 . . . . . 1 Robot Hacks Applied 2 | . . 1 . . . . . 1 find_shortcuts 2 | . . 1 . . . . . 1 Relay Couplers Released . | . . . . . . . . . Fabnet Peak Effective % . | . . . . . . . . . Robots Rewired . | . . . . . . . . . Allies Hacked . | . . . . . . . . . Hacks Repelled . | . . . . . . . . . Allies | -11 -10 -10 -10 -9 -8 -7 -6 -6 -------- Run | Yrd Mat Min Exi Min Mat Fac Fac Ext Total Allies 7 | . . 4 . . . . . 3 Largest Group 3 | . . 3 3 3 3 . . 3 Highest-Rated Group 84 | . . 40 40 40 40 . . 84 Highest-Rated Ally 39 | . . 31 16 16 16 . . 39 Total Orders . | . . . . . . . . . Ally Attacks 51 | . . 1 . 2 24 . 9 15 Total Damage 959 | . . 20 . 16 212 . 420 291 Kills 16 | . . 1 . 1 5 . 4 5 Allies Corrupted . | . . . . . . . . . Allies Melted 1 | . . . . . . . . 1 Turrets Deployed 1 | . . . . . . . 1 . Intel | -11 -10 -10 -10 -9 -8 -7 -6 -6 ------- Run | Yrd Mat Min Exi Min Mat Fac Fac Ext Active Infowar (turns) . | . . . . . . . . . Robot Analysis Total 10 | . . 1 . . 8 . . 1 Derelict Logs Recovered 2 | . . 1 . 1 . . . . Drone Launches . | . . . . . . . . . Drone Recoveries . | . . . . . . . . . Exploration | -11 -10 -10 -10 -9 -8 -7 -6 -6 ------------- Run | Yrd Mat Min Exi Min Mat Fac Fac Ext Turns Passed 2524 | 16 69 1194 154 83 233 189 327 259 Spaces Moved 2295 | 32 138 748 157 72 251 225 388 284 Core 371 | 32 138 92 92 . . . . 17 Treads 14 | . . . . . . . . 14 Legs 656 | . . 656 . . . . . . Wheels . | . . . . . . . . . Hover 1254 | . . . 65 72 251 225 388 253 Flight . | . . . . . . . . . Fastest Speed 50 | 50 50 50 50 80 80 80 80 50 Average Speed 87 | 50 50 111 62 80 80 80 80 82 Slowest Speed 160 | 50 50 120 80 80 80 80 80 160 Overloaded Moves . | . . . . . . . . . Propulsion Burnouts . | . . . . . . . . . Robots Hopped . | . . . . . . . . . Potential Cave-ins . | . . . . . . . . . Cave-ins Triggered . | . . . . . . . . . Exploration Rate (%) 35 | 4 31 100 51 23 35 8 21 44 Regions Visited 8 Branch Regions 4 Pre-discovered Areas 2 | . . . 1 1 . . . . Known Exits Taken 3 | . . . . . 1 1 1 . Unknown Exits Taken 5 | 1 1 1 1 1 . . . . Scrap Searched 2 | . . 2 . . . . . . Spaces Dug . | . . . . . . . . . Terrain Destroyed . | . . . . . . . . . Melee . | . . . . . . . . . Projectile . | . . . . . . . . . AOE . | . . . . . . . . . Terrain Rammed . | . . . . . . . . . Walls Destroyed . | . . . . . . . . . Machines Disabled . | . . . . . . . . . Actions | -11 -10 -10 -10 -9 -8 -7 -6 -6 --------- Run | Yrd Mat Min Exi Min Mat Fac Fac Ext Total 2796 | 31 137 1089 212 97 282 233 404 311 Wait 475 | . . 321 56 26 32 9 8 23 Move 2287 | 31 137 747 156 71 250 224 387 284 Hop . | . . . . . . . . . Pick Up . | . . . . . . . . . Fast Attach . | . . . . . . . . . Attach . | . . . . . . . . . Detach . | . . . . . . . . . Swap . | . . . . . . . . . Drop 1 | . . . . . . . 1 . Fire 18 | . . 18 . . . . . . Melee . | . . . . . . . . . Ram 1 | . . . . . . . . 1 Kick 3 | . . 3 . . . . . . Crush . | . . . . . . . . . Escape Stasis 11 | . . . . . . . 8 3 Rewire . | . . . . . . . . . Trap . | . . . . . . . . . Miscellaneous . | . . . . . . . . . Route ------- -11/Scrapyard -10/Materials (discovered 2 exits: Mat / [*Min]) -10/Mines (discovered 4 exits: *Mat x2 / *Exi / [*Sub]) -10/Exiles -9/Mines -8/Materials (discovered 3 exits: *Fac x3) -7/Factory (discovered 6 exits: *Fac x4 / Low x2) -6/Factory (discovered 4 exits: Low x2 / *Ext x2) -6/Extension History --------- Turn | Location | Event 7 | -11/Scrapyard | Discovered new exit (range 16) 17 | -11/Scrapyard | Entered Materials 52 | -10/Materials | Discovered new exit (range 15) 77 | -10/Materials | Discovered new exit (range 13) 86 | -10/Materials | Entered Mines 100 | -10/Mines | Met a Derelict bent on vengeance 111 | -10/Mines | Identified exit to Materials 188 | -10/Mines | Discovered exit to Materials (range 8) 266 | -10/Mines | Deemed a non-threat by the Exiles lab entrance 266 | -10/Mines | Discovered new exit (range 7) 352 | -10/Mines | Received a Rocket Launcher from a helpful Derelict 403 | -10/Mines | Received a Mining Laser from a helpful Derelict 582 | -10/Mines | Excavation squad dispatched 582 | -10/Mines | A large section of the Mines collapsed 1141 | -10/Mines | Assisted by bots powering up and referring to "LRC-V3" 1255 | -10/Mines | Discovered new exit (range 6) 1280 | -10/Mines | Entered Exiles 1280 | -10/Exiles | Accompanied by 3 allies 1293 | -10/Exiles | Met 8R-AWN 1301 | -10/Exiles | Met EX-HEX 1320 | -10/Exiles | Met EX-DEC 1327 | -10/Exiles | Took control of EX-DEC (ally) 1343 | -10/Exiles | Learned location of Zion (-6) 1371 | -10/Exiles | Discovered new exit (range 10) 1434 | -10/Exiles | Left Exiles lab with Deploy-a-Sentry 1434 | -10/Exiles | Entered Mines 1434 | -9/Mines | Accompanied by 3 allies 1492 | -9/Mines | Discovered new exit (range 11) 1517 | -9/Mines | Entered Materials 1517 | -8/Materials | Accompanied by 3 allies 1604 | -8/Materials | Identified exit to Factory 1750 | -8/Materials | Entered Factory 1869 | -7/Factory | Identified exit to Lower Caves 1869 | -7/Factory | Identified exit to Factory 1939 | -7/Factory | Entered another Factory area 2111 | -6/Factory | Identified exit to Lower Caves 2111 | -6/Factory | Identified exit to Extension 2201 | -6/Factory | DAS Turret deployed 2266 | -6/Factory | Entered Extension 2430 | -6/Extension | Rescued a captive Derelict 2438 | -6/Extension | Rescued a captive Derelict 2441 | -6/Extension | Rescued a captive Derelict 2477 | -6/Extension | Spotted B-75 Beast 2479 | -6/Extension | Core integrity fell below 50% 2489 | -6/Extension | Spotted B-75 Beast 2505 | -6/Extension | Core integrity fell below 20% 2525 | -6/Extension | Destroyed by B-75 Beast with Magnetic Acceleration Cannon Last Messages --------------- 02496_ HV Slug penetrates 4E-3LR(b). 02497_ Y-54 Guardian suffers critical hit (Smash). 02497_ Y-54 Guardian system corrupted by crushing effect. 02498_ Y-54 Guardian system terminally corrupted. 02498_ B-75 Beast suffers critical hit (Destroy). 02500_ Machine disabled. 02501_ Penetrated by HV Slug. 02501_ Knocked back. 02501_ 4E-3LR(b) destroyed. 02503_ SK-IDX(h) destroyed. 02504_ Took control of Y-54 Guardian. 02504_ Extracted analysis data for Y-54 Guardian. 02514_ Imp. Heat Sink destroyed. 02516_ Imp. Heat Sink blasted off. 02517_ Gatling Laser destroyed. 02517_ Critical hit (Blast). 02517_ Acquired 4 matter. 02519_ Flak Gun destroyed. 02522_ Imp. Deuterium Engine destroyed. 02524_ U-05 Engineer builds a Wall. Map ----- +----------------------------------------------------+ | ?????????????## #####=#??????????????????????????? | | ?????????????# T#?# #??????????????????????????? | | ?????????????## ##?#[#??????????????????????????? | | ??????????????# #??#%#??????????????????????????? | | ??????????????####??#%#??????????????????????????? | | ????????????????????#%#??????????????????????????? | | ????????????????????# #??????????????????????????? | | ????????????????????# #??????????????????????????? | | ????????????????????#%#??????????#???????????????? | | ????????????????????# #?###?#### #???????????????? | | ??????????????????###%### ## #"# ###?????????????? | | ????????????????###"" " "" ""#?????????????? | | ????????????????# # ["!=% u" " #?????????????? | | ?????????????????##u=%|%! #?????????????? | | ?????????????????## ==%* % #?????????????? | | ?????????########## %! % ######????????? | | ????? !%! ???????? | | ????? !% ???????? | | ????? %BB k ???????? | | ?????? R k BBR ???????? | | ?????? % BB k ???????? | | ???????############ BB ######????????? | | ??????????????????# #?????????????? | | ??????????????????# % #?????????????? | | ?????????????????## #?????????????? | | ?????????????????#; Y #?????????????? | | ?????????????????####;##T#"""#######?????????????? | | ???????????????????????###???????????????????????? | | ?????????????????????????????????????????????????? | | | | | | | | | | | | | | | | | | | | | | | | | | | | | | | | | | | | | | | | | | | +----------------------------------------------------+ Best States ------------- Heat Dissipation 43 Energy Generation 23 Energy Capacity 240 Matter Stores 99 Matter Capacity 100 Sight Range 16 Terrain Scan Density 10 Armor Coverage 150 Resistance: EX 50 Resistance: EM 90 Resistance: I 25 Evasion (%) 55 Launcher Accuracy 40 Target Analysis 6 Core Analysis 8 Armor Integrity Analysis 40 Recoil Reduction 2 Offensive Hacking 70 Defensive Hacking 56 Item Schematics ----------------- Angular Momentum Engine | -7/Factory | Hacked Robot Schematics ------------------ None Fabricated ------------ Nothing Repaired ---------- Nothing Alien Tech Used ----------------- None Achievements -------------- None Challenges ------------ None Polymind | -11 -10 -10 -10 -9 -8 -7 -6 -6 ---------- Run | Yrd Mat Min Exi Min Mat Fac Fac Ext Hosts 3 | . . 1 1 . . . . 1 Combat Hostiles 2 | . . 1 . . . . . 1 Allies 1 | . . . 1 . . . . . Unique Host Classes 3 | . . 1 1 . . . . 1 Average Host Suspicion 76 | . . 85 . 44 94 46 95 59 Unsuspicious Activity 126 | . . 110 16 . . . . . Returns to Shadow 1 | . . 1 . . . . . . Fuzzy Dispatches 1 | . . . . . . . 1 . Protomatter Created 279 | . . 48 . 9 82 . 71 69 Used 114 | . . 30 33 . . . . 51 Decayed 39 | . . 13 . . 16 . . 10 Highest Spend 51 | . . 30 33 . . . . 51 Top 5 Hosts by Kills: EX-DEC (-10/Exiles: 26) G-47 Trooper (-10/Mines: 5) Game ------ Seed FieldthrustHardcellStorage Manual? 0 Play Time 00:23:50 Cumulative 188.7 hours Start 2025.09.27 @ 17:32:54 End 2025.09.27 @ 17:57:36 Sessions 1 Manual Loads 0 Difficulty Rogue Special Mode Winter2022/Polymind Game No. 298 Rogue 295 Adventurer 3 Explorer 0 Win Type - Total 1 Types 1/0/0/0/0/0/0/0/0/0 Lore% 64 Gallery% 59 Achievement% 47 Wizard Run 0 Options --------- Layout 0 ASCII 0 Keyboard 0 Movement Mouse Keybinds 0 Fullscreen 2 Font 18/SmallcapsGlow Map View 76x50 Zoom Use 0% Tactical HUD 1 Map Filters NONE Filters NONE Steam 1 RUN: 8f0ce135-e455-4f12-8ae0-c926d13f6ff2